fUST/lending_fUST_20240807
["ID","MTS","AMOUNT","RATE_DAILY","PERIOD"]
[334384414,1723017049255,-500.0,0.00032876,14]
[334384415,1723017049264,-717.12,0.00032876,14]
[334384416,1723017049273,-500.0,0.00032876,14]
[334384417,1723017049283,-500.0,0.00032876,14]
[334384418,1723017049295,-500.0,0.00032876,14]
[334384419,1723017049305,-500.30179056,0.00032876,14]
[334384420,1723017049315,-500.0,0.00032876,14]
[334384421,1723017049326,-500.0,0.00032876,14]
[334384422,1723017049337,-500.0,0.00032876,14]
[334384423,1723017049346,-500.0,0.00032876,14]
[334384424,1723017049355,-500.0,0.00032876,14]
[334384425,1723017049365,-500.93686477,0.00032876,14]
[334384426,1723017049375,-500.0,0.00032876,14]
[334384427,1723017049384,-500.0,0.00032876,14]
[334384428,1723017049394,-500.0,0.00032876,14]
[334384429,1723017049404,-2641.92,0.00032876,14]
[334384430,1723017049415,-500.0,0.00032876,14]
[334384431,1723017049426,-212.56,0.00032876,14]
[334384432,1723017049437,-500.0,0.00032876,14]
[334384433,1723017049448,-500.0,0.00032876,14]
[334384434,1723017049458,-500.0,0.00032876,14]
[334384435,1723017049469,-276.171778,0.00032876,14]
[334384436,1723017049491,-500.0,0.00032876,14]
[334384437,1723017049502,-500.0,0.00032876,14]
[334384438,1723017049512,-1569.84,0.00032876,14]
[334384439,1723017049522,-500.0,0.00032876,14]
[334384440,1723017049532,-500.0,0.00032876,14]
[334384441,1723017049542,-500.0,0.00032876,14]
[334384442,1723017049552,-231.44834386,0.00032876,14]
[334384443,1723017049561,-793.25,0.00032876,14]
[334384444,1723017049571,-500.0,0.00032876,14]
[334384445,1723017049581,-500.0,0.00032876,14]
[334384446,1723017049591,-482.95790235,0.00032876,14]
[334384447,1723017049600,-500.48329858,0.00032876,14]
[334384448,1723017049610,-500.0,0.00032876,14]
[334384449,1723017049620,-500.0,0.00032876,14]
[334384450,1723017049630,-500.0,0.00032876,14]
[334384451,1723017049641,-500.0,0.00032876,14]
[334384452,1723017049650,-500.0,0.00032876,14]
[334384453,1723017049660,-500.0,0.00032876,14]
[334384454,1723017049670,-1145.61,0.00032876,14]
[334384455,1723017049679,-500.0,0.00032876,14]
[334384456,1723017049690,-836.05,0.00032876,14]
[334384457,1723017049700,-500.0,0.00032876,14]
[334384458,1723017049710,-500.0,0.00032876,14]
[334384459,1723017049721,-500.0,0.00032876,14]
[334384460,1723017049738,-500.0,0.00032876,14]
[334384461,1723017049749,-500.79987915,0.00032876,14]
[334384462,1723017049759,-636.15,0.00032876,14]
[334384463,1723017049769,-529.9504054,0.00032876,14]
[334384464,1723017049778,-500.0,0.00032876,14]
[334384465,1723017049787,-500.0,0.00032876,14]
[334384466,1723017049797,-514.5,0.00032876,14]
[334384467,1723017049806,-500.0,0.00032876,14]
[334384468,1723017049816,-1757.88,0.00032876,14]
[334384469,1723017049825,-500.0,0.00032876,14]
[334384470,1723017049835,-500.0,0.00032876,14]
[334384471,1723017049843,-502.26254289,0.00032876,14]
[334384472,1723017049852,-500.0,0.00032876,14]
[334384473,1723017049862,-1719.05,0.00032876,14]
[334384474,1723017049871,-604.84,0.00032876,14]
[334384475,1723017049881,-1524.55,0.00032876,14]
[334384476,1723017049891,-706.23,0.00032876,14]
[334384477,1723017049902,-502.87684821,0.00032876,14]
[334384478,1723017049914,-825.27,0.00032876,14]
[334384479,1723017049924,-1112.57,0.00032876,14]
[334384480,1723017049934,-500.0,0.00032876,14]
[334384481,1723017049943,-500.0,0.00032876,14]
[334384482,1723017049953,-500.0,0.00032876,14]
[334384483,1723017049962,-2209.88,0.00032876,14]
[334384484,1723017049971,-1070.18,0.00032876,14]
[334384485,1723017049988,-552.55823408,0.00032876,14]
[334384486,1723017049997,-663.9,0.00032876,14]
[334384487,1723017050006,-781.1,0.00032876,14]
[334384488,1723017050015,-534.62,0.00032876,14]
[334384489,1723017050025,-500.5412421,0.00032876,14]
[334384490,1723017050035,-500.0,0.00032876,14]
[334384491,1723017050046,-500.0,0.00032876,14]
[334384492,1723017050055,-501.92966641,0.00032876,14]
[334384493,1723017050064,-500.0,0.00032876,14]
[334384494,1723017050073,-703.63,0.00032876,14]
[334384495,1723017050083,-2208.28,0.00032876,14]
[334384496,1723017050093,-500.0,0.00032876,14]
[334384497,1723017050103,-502.49650793,0.00032876,14]
[334384498,1723017050112,-594.99,0.00032876,14]
[334384499,1723017050123,-500.0,0.00032876,14]
[334384500,1723017050134,-700.92,0.00032876,14]
[334384501,1723017050146,-500.0,0.00032876,14]
[334384502,1723017050157,-500.0,0.00032876,14]
[334384503,1723017050166,-501.78251023,0.00032876,14]
[334384504,1723017050177,-500.0,0.00032876,14]
[334384505,1723017050189,-569.34,0.00032876,14]
[334384506,1723017050199,-500.0,0.00032876,14]
[334384507,1723017050210,-551.77,0.00032876,14]
[334384508,1723017050220,-500.0,0.00032876,14]
[334384509,1723017050237,-500.0,0.00032876,14]
[334384510,1723017050246,-500.0,0.00032876,14]
[334384511,1723017050256,-503.11,0.00032876,14]
[334384512,1723017050266,-535.27,0.00032876,14]
[334384513,1723017050275,-500.0,0.00032876,14]
[334384514,1723017050285,-2462.53,0.00032876,14]
[334384515,1723017050295,-964.16,0.00032876,14]
[334384516,1723017050309,-964.43,0.00032876,14]
[334384517,1723017050319,-500.0,0.00032876,14]
[334384518,1723017050329,-500.0,0.00032876,14]
[334384519,1723017050339,-500.0,0.00032876,14]
[334384520,1723017050348,-500.0,0.00032876,14]
[334384521,1723017050358,-500.0,0.00032876,14]
[334384522,1723017050368,-501.75133157,0.00032876,14]
[334384523,1723017050378,-579.24,0.00032876,14]
[334384524,1723017050388,-583.46,0.00032876,14]
[334384525,1723017050399,-500.0,0.00032876,14]
[334384526,1723017050409,-500.0,0.00032876,14]
[334384527,1723017050419,-500.0,0.00032876,14]
[334384528,1723017050434,-500.0,0.00032876,14]
[334384529,1723017050445,-2078.45,0.00032876,14]
[334384530,1723017050455,-626.92,0.00032876,14]
[334384531,1723017050468,-774.76091774,0.00032876,5]
[334384532,1723017050629,-500.0,0.00032876,14]
[334384533,1723017050639,-1734.08,0.00032876,14]
[334384534,1723017050649,-534.65,0.00032876,14]
[334384535,1723017050659,-500.0,0.00032876,14]
[334384536,1723017050668,-502.31775371,0.00032876,14]
[334384537,1723017050677,-500.0,0.00032876,14]
[334384538,1723017050687,-2265.42,0.00032876,14]
[334384539,1723017050699,-3497.4,0.00032876,14]
[334384540,1723017050710,-911.24,0.00032876,14]
[334384541,1723017050719,-1007.8,0.00032876,14]
[334384542,1723017050736,-1705.52,0.00032876,14]
[334384543,1723017050746,-500.0,0.00032876,14]
[334384544,1723017050755,-500.0,0.00032876,14]
[334384545,1723017050765,-500.0,0.00032876,14]
[334384546,1723017050776,-502.18392716,0.00032876,14]
[334384547,1723017050785,-527.59,0.00032876,14]
[334384548,1723017050794,-500.0,0.00032876,14]
[334384549,1723017050803,-500.0,0.00032876,10]
[334384550,1723017050812,-1252.66,0.00032876,14]
[334384551,1723017050822,-501.79047382,0.00032876,14]
[334384552,1723017050832,-500.0,0.00032876,14]
[334384553,1723017050842,-500.0,0.00032876,14]
[334384554,1723017050851,-500.0,0.00032876,14]
[334384555,1723017050861,-777.11,0.00032876,14]
[334384556,1723017050871,-500.0,0.00032876,14]
[334384557,1723017050880,-1239.88,0.00032876,14]
[334384558,1723017050890,-2999.67,0.00032876,14]
[334384559,1723017050899,-824.74,0.00032876,14]
[334384560,1723017050909,-500.98147067,0.00032876,14]
[334384561,1723017050918,-500.0,0.00032876,14]
[334384562,1723017050928,-1068.74,0.00032876,14]
[334384563,1723017050938,-1213.42,0.00032876,14]
[334384564,1723017050947,-502.56006559,0.00032876,14]
[334384565,1723017050958,-3303.62,0.00032876,14]
[334384566,1723017050968,-1038.39,0.00032876,14]
[334384567,1723017050978,-500.0,0.00032876,14]
[334384568,1723017050993,-774.71,0.00032876,14]
[334384569,1723017051002,-500.0,0.00032876,2]
[334384570,1723017051011,-1398.48,0.00032876,14]
[334384571,1723017051020,-500.0,0.00032876,14]
[334384572,1723017051030,-473.11048063,0.00032876,14]
[334384573,1723017051041,-500.0,0.00032876,14]
[334384574,1723017051051,-500.0,0.00032876,14]
[334384575,1723017051060,-500.0,0.00032876,14]
[334384576,1723017051069,-864.67,0.00032876,14]
[334384577,1723017051078,-1216.37,0.00032876,14]
[334384578,1723017051088,-2557.26,0.00032876,14]
[334384579,1723017051098,-500.0,0.00032876,14]
[334384580,1723017051109,-756.19,0.00032876,14]
[334384581,1723017051119,-586.73,0.00032876,14]
[334384582,1723017051128,-500.0,0.00032876,14]
[334384583,1723017051137,-183.84840825,0.00032876,14]
[334384584,1723017051153,-500.0,0.00032876,14]
[334384585,1723017051162,-769.76,0.00032876,14]
[334384586,1723017051171,-500.0,0.00032876,14]
[334384587,1723017051180,-500.0,0.00032876,14]
[334384588,1723017051189,-500.0,0.00032876,14]
[334384589,1723017051199,-509.48719543,0.00032876,14]
[334384590,1723017051209,-500.0,0.00032876,14]
[334384591,1723017051218,-500.0,0.00032876,2]
[334384592,1723017051228,-500.88358438,0.00032876,14]
[334384593,1723017051243,-1109.96,0.00032876,14]
[334384594,1723017051252,-1266.46,0.00032876,14]
[334384595,1723017051261,-1506.67,0.00032876,14]
[334384596,1723017051270,-500.0,0.00032876,14]
[334384597,1723017051279,-500.0,0.00032876,14]
[334384598,1723017051288,-502.27812809,0.00032876,14]
[334384599,1723017051299,-500.0,0.00032876,14]
[334384600,1723017051308,-500.0,0.00032876,14]
[334384601,1723017051318,-1029.81,0.00032876,14]
[334384602,1723017051328,-501.61935866,0.00032876,14]
[334384603,1723017051338,-523.18383521,0.00032876,14]
[334384604,1723017051347,-751.84,0.00032876,14]
[334384605,1723017051357,-688.35,0.00032876,14]
[334384606,1723017051366,-500.0,0.00032876,14]
[334384607,1723017051375,-500.0,0.00032876,14]
[334384608,1723017051385,-626.67,0.00032876,14]
[334384609,1723017051394,-3149.36,0.00032876,14]
[334384610,1723017051404,-526.74532525,0.00032876,14]
[334384611,1723017051413,-500.0,0.00032876,14]
[334384612,1723017051423,-500.0,0.00032876,14]
[334384613,1723017051433,-500.0,0.00032876,14]
[334384614,1723017051443,-655.37,0.00032876,14]
[334384615,1723017051452,-500.0,0.00032876,14]
[334384616,1723017051462,-1552.29,0.00032876,14]
[334384617,1723017051472,-2202.83,0.00032876,14]
[334384618,1723017051486,-563.54,0.00032876,14]
[334384619,1723017051495,-2563.27,0.00032876,14]
[334384620,1723017051504,-611.0,0.00032876,14]
[334384621,1723017051514,-500.0,0.00032876,14]
[334384622,1723017051523,-537.61215408,0.00032876,14]
[334384623,1723017051532,-500.0,0.00032876,14]
[334384624,1723017051541,-500.0,0.00032876,14]
[334384625,1723017051550,-501.45710564,0.00032876,14]
[334384626,1723017051560,-501.74504768,0.00032876,14]
[334384627,1723017051570,-500.0,0.00032876,14]
[334384628,1723017051579,-500.39552925,0.00032876,14]
[334384629,1723017051588,-680.22,0.00032876,14]
[334384630,1723017051598,-501.16995081,0.00032876,14]
[334384631,1723017051607,-500.0,0.00032876,14]
[334384632,1723017051616,-500.0,0.00032876,14]
[334384633,1723017051626,-501.14527399,0.00032876,14]
[334384634,1723017051635,-500.0,0.00032876,14]
[334384635,1723017051645,-500.0,0.00032876,14]
[334384636,1723017051655,-502.97322967,0.00032876,14]
[334384637,1723017051664,-500.0,0.00032876,14]
[334384638,1723017051673,-500.0,0.00032876,14]
[334384639,1723017051682,-1506.17,0.00032876,14]
[334384640,1723017051691,-507.68751428,0.00032876,14]
[334384641,1723017051700,-501.27758262,0.00032876,14]
[334384642,1723017051710,-417.19383834,0.00032876,14]
[334384643,1723017051719,-867.44,0.00032876,14]
[334384644,1723017051732,-513.94,0.00032876,14]
[334384645,1723017051743,-787.8,0.00032876,14]
[334384646,1723017051752,-503.0994319,0.00032876,14]
[334384647,1723017051762,-501.17866054,0.00032876,14]
[334384648,1723017051771,-502.68604022,0.00032876,14]
[334384649,1723017051780,-941.02,0.00032876,14]
[334384650,1723017051789,-500.0,0.00032876,14]
[334384651,1723017051799,-500.0,0.00032876,14]
[334384652,1723017051809,-500.68214296,0.00032876,14]
[334384653,1723017051818,-501.04,0.00032876,14]
[334384654,1723017051828,-500.0,0.00032876,14]
[334384655,1723017051838,-500.0,0.00032876,14]
[334384656,1723017051846,-500.0,0.00032876,14]
[334384657,1723017051857,-2792.46,0.00032876,14]
[334384658,1723017051866,-500.0,0.00032876,14]
[334384659,1723017051876,-500.0,0.00032876,14]
[334384660,1723017051887,-505.11350173,0.00032876,14]
[334384661,1723017051897,-500.0,0.00032876,14]
[334384662,1723017051908,-500.0,0.00032876,14]
[334384663,1723017051920,-501.26509976,0.00032876,14]
[334384664,1723017051930,-615.47,0.00032876,14]
[334384665,1723017051941,-640.11,0.00032876,14]
[334384666,1723017051951,-500.0,0.00032876,14]
[334384667,1723017051960,-179.21535255,0.00032876,14]
[334384668,1723017051970,-2798.72,0.00032876,14]
[334384669,1723017051987,-6928.85,0.00032876,14]
[334384670,1723017051998,-500.88823615,0.00032876,14]
[334384671,1723017052007,-501.15509733,0.00032876,14]
[334384672,1723017052017,-618.63,0.00032876,14]
[334384673,1723017052027,-500.0,0.00032876,14]
[334384674,1723017052040,-2138.13,0.00032876,14]
[334384675,1723017052049,-500.0,0.00032876,14]
[334384676,1723017052058,-500.0,0.00032876,14]
[334384677,1723017052068,-504.71909414,0.00032876,14]
[334384678,1723017052076,-500.0,0.00032876,14]
[334384679,1723017052085,-500.0,0.00032876,14]
[334384680,1723017052095,-500.0,0.00032876,14]
[334384681,1723017052105,-501.18315458,0.00032876,14]
[334384682,1723017052118,-568.11,0.00032876,14]
[334384683,1723017052130,-406.25470142,0.00032876,14]
[334384684,1723017052139,-500.0,0.00032876,14]
[334384685,1723017052149,-501.36640129,0.00032876,14]
[334384686,1723017052159,-500.0,0.00032876,14]
[334384687,1723017052169,-500.0,0.00032876,14]
[334384688,1723017052179,-500.0,0.00032876,14]
[334384689,1723017052189,-500.0,0.00032876,14]
[334384690,1723017052200,-500.0,0.00032876,14]
[334384691,1723017052210,-500.0,0.00032876,14]
[334384692,1723017052223,-500.0,0.00032876,14]
[334384693,1723017052242,-500.91253125,0.00032876,14]
[334384694,1723017052251,-601.5,0.00032876,14]
[334384695,1723017052261,-548.44,0.00032876,14]
[334384696,1723017052271,-500.0,0.00032876,14]
[334384697,1723017052281,-500.50696891,0.00032876,14]
[334384698,1723017052291,-971.29,0.00032876,14]
[334384699,1723017052301,-500.0,0.00032876,14]
[334384700,1723017052310,-539.18,0.00032876,14]
[334384701,1723017052320,-2467.7,0.00032876,14]
[334384702,1723017052330,-503.89572896,0.00032876,14]
[334384703,1723017052340,-503.04878791,0.00032876,14]
[334384704,1723017052349,-500.0,0.00032876,14]
[334384705,1723017052359,-1114.81,0.00032876,14]
[334384706,1723017052368,-500.0,0.00032876,14]
[334384707,1723017052378,-500.89003979,0.00032876,14]
[334384708,1723017052388,-560.31967723,0.00032876,14]
[334384709,1723017052398,-515.30847423,0.00032876,14]
[334384710,1723017052408,-929.18,0.00032876,14]
[334384711,1723017052417,-576.99,0.00032876,14]
[334384712,1723017052427,-576.99,0.00032876,14]
[334384713,1723017052437,-500.0,0.00032876,14]
[334384714,1723017052447,-576.99,0.00032876,14]
[334384715,1723017052457,-501.0642277,0.00032876,14]
[334384716,1723017052467,-576.99,0.00032876,14]
[334384717,1723017052478,-576.99,0.00032876,14]
[334384718,1723017052497,-3577.42,0.00032876,14]
[334384719,1723017052507,-576.99,0.00032876,14]
[334384720,1723017052517,-576.99,0.00032876,14]
[334384721,1723017052526,-529.05,0.00032876,14]
[334384722,1723017052536,-500.0,0.00032876,14]
[334384723,1723017052546,-2660.5,0.00032876,14]
[334384724,1723017052555,-576.99,0.00032876,14]
[334384725,1723017052565,-576.99,0.00032876,14]
[334384726,1723017052575,-576.99,0.00032876,14]
[334384727,1723017052584,-1220.09,0.00032876,14]
[334384728,1723017052593,-576.99,0.00032876,14]
[334384729,1723017052603,-8209.47,0.00032876,14]
[334384730,1723017052613,-576.99,0.00032876,14]
[334384731,1723017052622,-576.99,0.00032876,14]
[334384732,1723017052632,-501.11843849,0.00032876,14]
[334384733,1723017052642,-576.99,0.00032876,14]
[334384734,1723017052651,-576.99,0.00032876,14]
[334384735,1723017052661,-576.99,0.00032876,14]
[334384736,1723017052671,-576.99,0.00032876,14]
[334384737,1723017052681,-576.99,0.00032876,14]
[334384738,1723017052691,-576.99,0.00032876,14]
[334384739,1723017052700,-500.0,0.00032876,14]
[334384740,1723017052712,-576.99,0.00032876,14]
[334384741,1723017052722,-501.49339252,0.00032876,14]
[334384742,1723017052738,-576.99,0.00032876,14]
[334384743,1723017052748,-576.99,0.00032876,14]
[334384744,1723017052758,-576.99,0.00032876,14]
[334384745,1723017052767,-577.14925933,0.00032876,14]
[334384746,1723017052777,-501.50590815,0.00032876,14]
[334384747,1723017052787,-655.83,0.00032876,14]
[334384748,1723017052797,-500.0,0.00032876,14]
[334384749,1723017052807,-957.52,0.00032876,14]
[334384750,1723017052817,-504.28,0.00032876,14]
[334384751,1723017052826,-4108.88,0.00032876,14]
[334384752,1723017052835,-892.52,0.00032876,14]
[334384753,1723017052846,-500.0,0.00032876,14]
[334384754,1723017052855,-1703.62,0.00032876,14]
[334384755,1723017052865,-515.8683105,0.00032876,14]
[334384756,1723017052875,-500.88718816,0.00032876,14]
[334384757,1723017052885,-4785.17,0.00032876,14]
[334384758,1723017052895,-500.0,0.00032876,14]
[334384759,1723017052908,-674.3,0.00032876,14]
[334384760,1723017052917,-500.0,0.00032876,14]
[334384761,1723017052928,-500.92302022,0.00032876,14]
[334384762,1723017052938,-500.0,0.00032876,14]
[334384763,1723017052947,-2062.52,0.00032876,14]
[334384764,1723017052958,-501.10561582,0.00032876,14]
[334384765,1723017052967,-500.0,0.00032876,14]
[334384766,1723017052977,-534.21635875,0.00032876,14]
[334384767,1723017052998,-511.99018651,0.00032876,14]
[334384768,1723017053008,-500.0,0.00032876,14]
[334384769,1723017053017,-500.0,0.00032876,14]
[334384770,1723017053027,-500.0,0.00032876,14]
[334384771,1723017053037,-500.0,0.00032876,14]
[334384772,1723017053047,-815.42,0.00032876,14]
[334384773,1723017053057,-505.27095382,0.00032876,14]
[334384774,1723017053067,-661.72,0.00032876,14]
[334384775,1723017053076,-302.06624509,0.00032876,14]
[334384776,1723017053086,-500.0,0.00032876,14]
[334384777,1723017053095,-501.5616108,0.00032876,14]
[334384778,1723017053160,-776.63,0.00032876,14]
[334384779,1723017053171,-549.19,0.00032876,14]
[334384780,1723017053182,-500.53535496,0.00032876,14]
[334384781,1723017053193,-500.0,0.00032876,14]
[334384782,1723017053204,-1150.35,0.00032876,14]
[334384783,1723017053216,-200.0,0.00032876,7]
[334384784,1723017053226,-500.79,0.00032876,14]
[334384785,1723017053242,-500.0,0.00032876,14]
[334384786,1723017053251,-501.20873665,0.00032876,14]
[334384787,1723017053262,-502.29883325,0.00032876,14]
[334384788,1723017053271,-502.38910931,0.00032876,14]
[334384789,1723017053281,-1004.1,0.00032876,14]
[334384790,1723017053290,-500.0,0.00032876,14]
[334384791,1723017053301,-500.67980198,0.00032876,14]
[334384792,1723017053310,-670.75,0.00032876,14]
[334384793,1723017053319,-500.93437183,0.00032876,14]
[334384794,1723017053330,-766.98,0.00032876,14]
[334384795,1723017053339,-500.0,0.00032876,14]
[334384796,1723017053348,-501.08337419,0.00032876,14]
[334384797,1723017053358,-500.65385222,0.00032876,14]
[334384798,1723017053367,-2359.15,0.00032876,14]
[334384799,1723017053377,-500.0,0.00032876,14]
[334384800,1723017053386,-500.79128978,0.00032876,14]
[334384801,1723017053395,-500.0,0.00032876,14]
[334384802,1723017053405,-500.0,0.00032876,14]
[334384803,1723017053414,-501.14761608,0.00032876,14]
[334384804,1723017053423,-5755.15,0.00032876,14]
[334384805,1723017053433,-556.07789016,0.00032876,14]
[334384806,1723017053443,-500.8386423,0.00032876,14]
[334384807,1723017053452,-500.0,0.00032876,14]
[334384808,1723017053462,-501.43939115,0.00032876,14]
[334384809,1723017053472,-500.92374293,0.00032876,14]
[334384810,1723017053487,-500.0,0.00032876,14]
[334384811,1723017053497,-2070.75,0.00032876,14]
[334384812,1723017053506,-501.56228722,0.00032876,14]
[334384813,1723017053515,-500.0,0.00032876,14]
[334384814,1723017053524,-500.0,0.00032876,14]
[334384815,1723017053534,-500.0,0.00032876,14]
[334384816,1723017053544,-495.81918734,0.00032876,14]
[334384817,1723017053553,-501.85968647,0.00032876,14]
[334384818,1723017053562,-501.09278472,0.00032876,14]
[334384819,1723017053572,-3002.39,0.00032876,14]
[334384820,1723017053581,-500.0,0.00032876,14]
[334384821,1723017053590,-501.05707887,0.00032876,14]
[334384822,1723017053599,-963.31,0.00032876,14]
[334384823,1723017053607,-501.1864609,0.00032876,14]
[334384824,1723017053617,-500.0,0.00032876,14]
[334384825,1723017053626,-1080.48,0.00032876,14]
[334384826,1723017053635,-500.0,0.00032876,14]
[334384827,1723017053645,-597.32,0.00032876,14]
[334384828,1723017053654,-500.0,0.00032876,14]
[334384829,1723017053663,-500.0,0.00032876,14]
[334384830,1723017053672,-500.0,0.00032876,14]
[334384831,1723017053682,-500.0,0.00032876,14]
[334384832,1723017053691,-500.46637272,0.00032876,14]
[334384833,1723017053700,-2960.96,0.00032876,14]
[334384834,1723017053709,-4774.24,0.00032876,14]
[334384835,1723017053718,-686.67,0.00032876,14]
[334384836,1723017053727,-1527.11,0.00032876,14]
[334384837,1723017053738,-500.0,0.00032876,14]
[334384838,1723017053747,-500.0,0.00032876,14]
[334384839,1723017053756,-501.40864294,0.00032876,14]
[334384840,1723017053765,-506.70419143,0.00032876,14]
[334384841,1723017053774,-995.23,0.00032876,14]
[334384842,1723017053783,-676.99,0.00032876,14]
[334384843,1723017053792,-504.0108669,0.00032876,14]
[334384844,1723017053801,-500.0,0.00032876,14]
[334384845,1723017053810,-526.34,0.00032876,14]
[334384846,1723017053819,-500.0,0.00032876,14]
[334384847,1723017053828,-500.59057402,0.00032876,14]
[334384848,1723017053838,-975.58,0.00032876,14]
[334384849,1723017053847,-975.58,0.00032876,14]
[334384850,1723017053856,-4154.29,0.00032876,14]
[334384851,1723017053865,-975.58,0.00032876,14]
[334384852,1723017053874,-500.0,0.00032876,14]
[334384853,1723017053883,-975.58,0.00032876,14]
[334384854,1723017053892,-975.58,0.00032876,14]
[334384855,1723017053902,-700.05,0.00032876,14]
[334384856,1723017053911,-975.58,0.00032876,14]
[334384857,1723017053920,-975.58,0.00032876,14]
[334384858,1723017053930,-975.58,0.00032876,14]
[334384859,1723017053938,-500.84658584,0.00032876,14]
[334384860,1723017053948,-975.58,0.00032876,14]
[334384861,1723017053957,-975.58,0.00032876,14]
[334384862,1723017053966,-975.58,0.00032876,14]
[334384863,1723017053975,-975.58,0.00032876,14]
[334384864,1723017053986,-975.58,0.00032876,14]
[334384865,1723017053995,-975.58,0.00032876,14]
[334384866,1723017054004,-975.58,0.00032876,14]
[334384867,1723017054013,-975.58,0.00032876,14]
[334384868,1723017054023,-975.58,0.00032876,14]
[334384869,1723017054034,-975.58,0.00032876,14]
[334384870,1723017054043,-975.58,0.00032876,14]
[334384871,1723017054053,-975.58,0.00032876,14]
[334384872,1723017054062,-975.58,0.00032876,14]
[334384873,1723017054071,-500.0,0.00032876,14]
[334384874,1723017054081,-975.58,0.00032876,14]
[334384875,1723017054090,-975.58,0.00032876,14]
[334384876,1723017054099,-975.6668014,0.00032876,14]
[334384877,1723017054109,-500.0,0.00032876,14]
[334384878,1723017054120,-500.0,0.00032876,14]
[334384879,1723017054132,-5000.63,0.00032876,14]
[334384880,1723017054142,-28122.47,0.00032876,14]
[334384881,1723017054152,-521.58,0.00032876,14]
[334384882,1723017054162,-808.45,0.00032876,14]
[334384883,1723017054171,-500.0,0.00032876,14]
[334384884,1723017054181,-501.5117125,0.00032876,14]
[334384885,1723017054190,-648.99,0.00032876,14]
[334384886,1723017054199,-500.0,0.00032876,14]
[334384887,1723017054208,-1847.01,0.00032876,14]
[334384888,1723017054218,-647.73,0.00032876,14]
[334384889,1723017054227,-500.0,0.00032876,14]
[334384890,1723017054239,-501.56512563,0.00032876,14]
[334384891,1723017054249,-8023.4,0.00032876,14]
[334384892,1723017054258,-500.0,0.00032876,14]
[334384893,1723017054268,-2484.87,0.00032876,14]
[334384894,1723017054277,-500.0,0.00032876,14]
[334384895,1723017054287,-500.0,0.00032876,14]
[334384896,1723017054297,-500.0,0.00032876,14]
[334384897,1723017054307,-500.0,0.00032876,14]
[334384898,1723017054317,-502.08967705,0.00032876,14]
[334384899,1723017054327,-501.33308208,0.00032876,14]
[334384900,1723017054337,-7172.88,0.00032876,14]
[334384901,1723017054346,-2121.04,0.00032876,14]
[334384902,1723017054356,-877.33,0.00032876,14]
[334384903,1723017054365,-553.5,0.00032876,14]
[334384904,1723017054375,-500.0,0.00032876,14]
[334384905,1723017054384,-585.85,0.00032876,14]
[334384906,1723017054393,-2000.0,0.00032876,2]
[334384907,1723017054402,-1442.96,0.00032876,14]
[334384908,1723017054411,-501.35375112,0.00032876,14]
[334384909,1723017054420,-5113.28,0.00032876,14]
[334384910,1723017054429,-500.0,0.00032876,14]
[334384911,1723017054438,-6546.71,0.00032876,14]
[334384912,1723017054449,-3242.15,0.00032876,14]
[334384913,1723017054459,-501.40420964,0.00032876,14]